bitfinex/quotes_ETHUSD_20250620
["timestamp","ask_amount","ask_price","bid_price","bid_amount"]
[1750392606642,8.023,2520.7,2520.6,5.30582569]
[1750392606842,8.023,2520.7,2520.6,5.34549442]
[1750392607368,8.023,2520.7,2520.6,5.30582569]
[1750392607572,8.023,2520.7,2520.6,5.34549442]
[1750392607735,8.023,2520.7,2520.6,5.30582569]
[1750392608170,8.023,2520.7,2520.6,5.34549443]
[1750392608471,8.023,2520.7,2520.6,5.30582569]
[1750392609465,1.63,2520.7,2520.6,5.34549444]
[1750392609634,1.63,2520.7,2520.6,5.30582569]
[1750392613573,6.39,2520.8,2520.7,3.96715198]
[1750392613873,6.39,2520.8,2520.7,5.29119642]
[1750392615952,6.39,2520.8,2520.7,5.39006345]
[1750392618182,0.55711933,2521.0,2520.9,3.96683724]
[1750392618695,0.55711933,2521.0,2520.9,4.00650204]
[1750392618696,6.94411933,2521.0,2520.9,4.00650204]
[1750392618856,6.94411933,2521.0,2520.9,3.96683724]
[1750392619994,0.55711933,2521.0,2520.9,3.96683724]
[1750392620299,6.94411933,2521.0,2520.9,4.00650111]
[1750392620494,0.55711933,2521.0,2520.9,3.96683724]
[1750392620674,0.55711933,2521.0,2520.9,5.48056636]
[1750392621473,0.55711933,2521.0,2520.9,5.44090251]
[1750392621682,0.55711933,2521.0,2520.9,5.48056513]
[1750392622082,0.55711933,2521.0,2520.9,6.28996513]
[1750392623305,0.55711933,2521.0,2520.9,13.23660208]
[1750392623598,0.55711933,2521.0,2520.9,13.58963964]
[1750392623800,0.55711933,2521.0,2520.9,19.97663964]
[1750392624562,0.55711933,2521.0,2520.9,20.52663964]
[1750392624898,0.55711933,2521.0,2520.9,21.12663964]
[1750392633114,0.55711933,2521.0,2520.9,25.83663964]
[1750392634210,0.55711933,2521.0,2520.9,19.44963964]
[1750392634516,0.059,2521.5,2521.4,3.9660506]
[1750392634688,0.059,2521.5,2521.4,4.0270506]
[1750392636113,0.059,2521.5,2521.4,11.01333655]
[1750392636310,0.059,2521.5,2521.4,12.34908755]
[1750392636607,0.059,2521.5,2521.4,18.73408755]
[1750392636918,0.059,2521.5,2521.4,19.60877607]
[1750392638774,0.059,2521.5,2521.4,11.22573912]
[1750392638898,0.059,2521.5,2521.4,4.84073912]
[1750392639604,0.059,2521.5,2521.4,4.88039081]
[1750392640612,0.059,2521.5,2521.4,4.84073912]
[1750392640784,0.9283,2521.5,2521.4,3.9660506]
[1750392644631,0.8071,2521.4,2521.2,3.96623963]
[1750392644932,2.4803,2521.3,2521.2,3.96623963]
[1750392647409,1.6871,2521.3,2521.2,3.96636522]
[1750392648008,2.4878,2521.3,2521.2,3.96636522]
[1750392648528,0.8007,2521.2,2520.8,3.96698251]
[1750392648751,3.6364437,2521.3,2521.0,3.96667988]
[1750392648752,7.2518,2521.1,2521.0,3.96667988]
[1750392658967,7.2518,2521.1,2520.9,3.96676138]
[1750392658968,0.0618,2521.0,2520.9,3.96676138]
[1750392659341,0.8664,2521.0,2520.9,3.96676138]
[1750392660840,1.626,2521.3,2521.2,3.96636522]
[1750392661161,19.65414645,2521.3,2521.2,3.96636522]
[1750392661552,20.43724645,2521.3,2521.2,3.96636522]
[1750392662061,0.7831,2521.2,2520.5,0.8448]
[1750392662265,0.0618,2521.1,2521.0,3.96654161]
[1750392662655,0.0618,2521.1,2521.0,3.96667988]
[1750392662854,0.7574,2521.1,2521.0,3.96667988]
[1750392663051,0.8192,2521.1,2521.0,3.96667988]
[1750392666269,9.68245529,2521.1,2520.3,0.7676]
[1750392666476,0.0618,2520.9,2520.8,3.96698746]
[1750392670136,0.06021349,2520.9,2520.8,3.96698746]
[1750392671044,0.43058043,2520.9,2520.8,3.96698746]
[1750392671250,0.06021349,2520.9,2520.8,3.96698746]
[1750392671458,0.43058029,2520.9,2520.8,3.96698746]
[1750392672192,1.80658029,2520.9,2520.8,3.96698746]
[1750392672688,1.626,2520.9,2520.8,3.96698746]
[1750392680084,1.626,2520.9,2520.7,3.96708648]
[1750392680085,8.62453695,2520.9,2520.7,3.96708648]
[1750392680290,7.2171,2520.8,2520.7,3.96708648]
[1750392680792,7.2171,2520.8,2520.6,3.96721891]
[1750392681003,6.94663695,2520.7,2520.1,0.7886]
[1750392681183,6.387,2520.6,2520.4,3.9675467]
[1750392681757,6.387,2520.6,2520.5,3.96746677]
[1750392682052,6.387,2520.6,2520.4,3.96752616]
[1750392682979,6.387,2520.6,2520.5,3.96746677]
[1750392684191,6.75735898,2520.6,2520.5,3.96746677]
[1750392684504,6.387,2520.6,2520.5,3.96746677]
[1750392684705,6.75735658,2520.6,2520.5,3.96746677]
[1750392685200,6.75735886,2520.6,2520.5,3.96746677]
[1750392685359,6.387,2520.6,2520.5,3.96746677]
[1750392685904,6.7573844,2520.6,2520.5,3.96746677]
[1750392686106,6.387,2520.6,2520.5,3.96746677]
[1750392686567,6.387,2520.6,2520.5,4.02716677]
[1750392691498,0.37059365,2520.6,2520.5,4.02716677]
[1750392691699,8.015,2520.6,2520.5,4.82663606]
[1750392693199,8.016,2520.6,2520.5,4.82663606]
[1750392694397,8.016,2520.6,2520.5,4.02716677]
[1750392695692,8.016,2520.6,2520.5,3.96746677]
[1750392697125,8.016,2520.6,2520.2,3.96782466]
[1750392697126,15.33347222,2520.6,2520.2,3.96782466]
[1750392697327,6.94663695,2520.4,2519.9,0.0597]
[1750392697623,6.94663695,2520.2,2520.0,3.96812882]
[1750392697844,1.99774445,2520.1,2519.4,0.7702]
[1750392698021,14.4888814,2520.0,2519.8,3.96849039]
[1750392698223,14.11813695,2520.0,2519.8,3.96849039]
[1750392699937,7.1715,2520.0,2519.9,3.96841144]
[1750392700122,7.54174771,2520.0,2519.9,3.96841144]
[1750392700322,7.1715,2520.0,2519.9,4.56841144]
[1750392705451,7.1715,2520.0,2519.9,0.6]
[1750392705452,14.11813695,2520.0,2519.9,0.6]
[1750392705632,14.11813695,2520.0,2519.9,3.96841144]
[1750392710558,14.11813695,2520.0,2519.8,3.96850665]
[1750392710939,14.17003695,2520.0,2519.8,3.96850665]
[1750392711521,14.17003695,2520.0,2519.9,3.96841144]
[1750392711822,14.11813695,2520.0,2519.9,3.96841144]
[1750392712743,14.11813695,2520.0,2519.8,3.96847354]
[1750392715657,14.11813695,2520.0,2519.7,3.96868606]
[1750392715863,14.17003695,2520.0,2519.7,3.96868606]
[1750392716657,18.13830539,2520.0,2519.6,3.96879025]
[1750392716864,14.17003695,2520.0,2519.6,3.96879025]
[1750392717044,14.17003695,2520.0,2519.7,3.9686943]
[1750392717668,6.94663695,2519.8,2519.4,0.7702]
[1750392717870,6.94663695,2519.6,2519.2,0.7766]
[1750392718029,8.019,2519.5,2519.4,3.96910708]
[1750392718936,8.019,2519.5,2519.4,4.03080708]
[1750392720652,1.629,2519.5,2519.4,4.03080708]
[1750392720839,8.019,2519.5,2519.4,4.03080708]
[1750392730769,9.534,2520.3,2519.8,3.96856893]
[1750392730974,19.20496035,2520.2,2520.0,3.96817072]
[1750392731147,0.37096035,2520.1,2520.0,3.96817072]
[1750392732070,25.78063695,2520.2,2519.9,3.9683194]
[1750392732244,10.0,2520.0,2519.9,3.96841144]
[1750392732575,10.37098089,2520.0,2519.9,3.96841144]
[1750392732881,10.0,2520.0,2519.9,3.96841144]
[1750392733083,10.37098091,2520.0,2519.9,3.96841144]
[1750392733380,10.37098746,2520.0,2519.9,3.96841144]
[1750392734080,10.37098555,2520.0,2519.9,3.96841144]
[1750392734287,10.37098676,2520.0,2519.9,3.96841144]
[1750392735082,10.37100826,2520.0,2519.9,3.96841144]
[1750392735486,10.37100738,2520.0,2519.9,3.96841144]
[1750392735648,16.76100763,2520.0,2519.9,3.96841144]
[1750392735849,16.76100771,2520.0,2519.9,3.96841144]
[1750392736049,16.76100834,2520.0,2519.9,3.96841144]
[1750392736250,16.39,2520.0,2519.9,3.96841144]
[1750392736474,16.76104255,2520.0,2519.9,3.96841144]
[1750392736888,16.76104268,2520.0,2519.9,3.96841144]
[1750392737267,16.76104268,2520.0,2519.8,4.03020277]
[1750392737585,0.37104268,2519.9,2519.8,4.03020277]
[1750392737783,23.33663695,2520.0,2519.7,4.03033991]
[1750392737953,6.76096145,2519.9,2519.7,3.96863991]
[1750392738155,7.3175984,2519.8,2519.6,3.96878924]
[1750392738481,8.38795644,2519.7,2519.6,3.96878924]
[1750392738864,8.38790386,2519.7,2519.6,3.96878924]
[1750392739884,8.3879218,2519.7,2519.6,3.96878924]
[1750392740549,8.017,2519.7,2519.6,3.96878924]
[1750392740882,8.38792745,2519.7,2519.6,3.96878924]
[1750392741087,8.38792666,2519.7,2519.6,3.96878924]
[1750392741598,8.38792666,2519.7,2519.6,4.03048924]
[1750392742062,8.38796885,2519.7,2519.6,4.03048924]
[1750392742587,8.3879675,2519.7,2519.6,4.03048924]
[1750392743585,8.38798359,2519.7,2519.6,4.03048924]
[1750392745289,8.3880576,2519.7,2519.6,4.03048924]
[1750392746292,8.017,2519.7,2519.6,4.03048924]
[1750392746480,8.38805783,2519.7,2519.6,4.03048924]
[1750392746987,8.38806624,2519.7,2519.6,4.03048924]
[1750392747188,8.38806624,2519.7,2519.6,5.61983853]
[1750392747525,0.37106624,2519.7,2519.6,5.61983853]
[1750392747675,2.52045327,2521.0,2520.9,3.96683724]
[1750392747856,2.52045327,2521.0,2520.0,0.55]
[1750392747857,10.0611,2520.9,2520.5,0.7816]
[1750392748212,0.834,2520.8,2520.4,0.057]
[1750392748375,0.834,2520.8,2520.7,3.96715198]
[1750392748709,17.242,2520.8,2520.6,3.96724097]
[1750392749015,19.91290902,2520.8,2520.6,3.96724097]
[1750392749521,13.44380902,2520.8,2520.7,3.96715198]
[1750392749682,21.53990902,2520.8,2520.7,3.96715198]
[1750392750015,2.52045327,2521.0,2520.9,3.96683724]
[1750392750173,0.26630008,2521.5,2520.9,3.96683724]
[1750392750174,1.627,2521.1,2521.0,3.96667988]
[1750392750352,8.042,2521.1,2521.0,3.96667988]
[1750392751807,8.1031,2521.1,2521.0,3.96667988]
[1750392752396,8.042,2521.1,2521.0,3.96667988]
[1750392752597,0.7619,2521.3,2521.2,3.96636522]
[1750392752832,8.044,2521.3,2521.2,3.96629028]
[1750392753309,8.1041,2521.3,2521.2,3.96629028]
[1750392753909,8.1041,2521.3,2521.1,3.96643831]
[1750392754132,15.05073695,2521.3,2521.1,3.96643831]
[1750392754307,15.05073695,2521.3,2521.2,3.96636522]
[1750392755254,7.00773695,2521.3,2521.2,3.96636522]
[1750392755407,14.98863695,2521.3,2521.2,3.96636522]
[1750392757710,8.57363695,2521.3,2521.2,3.96636522]
[1750392757910,14.98663695,2521.3,2521.2,3.96636522]
[1750392763636,15.04773695,2521.3,2521.2,3.96636522]
[1750392767863,15.04773695,2521.3,2521.0,3.96665297]
[1750392768093,7.82483695,2521.1,2520.4,0.057]
[1750392768238,13.35363695,2521.0,2520.9,3.96672656]
[1750392768637,13.35363695,2521.0,2520.8,3.96691714]
[1750392769070,13.35363695,2521.0,2520.7,3.96707867]
[1750392769071,13.35363695,2521.0,2520.9,3.96683724]
[1750392770410,13.41473695,2521.0,2520.8,3.96690176]
[1750392770889,13.41473695,2521.0,2520.9,3.96683724]
[1750392771388,13.35363695,2521.0,2520.9,3.96683724]
[1750392771546,13.35363695,2521.0,2520.8,3.96692361]
[1750392771743,13.41473695,2521.0,2520.8,3.96692361]
[1750392772581,0.0619,2520.9,2520.8,3.96692361]
[1750392772759,0.0619,2520.9,2520.7,3.96706264]
[1750392773073,8.046,2520.8,2520.7,3.96706264]
[1750392776740,15.05453695,2520.8,2520.6,3.96729732]
[1750392777930,15.05453695,2520.8,2520.7,3.96715198]
[1750392778233,15.05453695,2520.8,2520.6,3.96723035]
[1750392778538,15.05453695,2520.8,2520.6,3.96730937]
[1750392778829,15.05453695,2520.8,2520.7,3.96715198]
[1750392779025,15.05453695,2520.8,2520.6,3.96722649]
[1750392779332,15.05453695,2520.8,2520.7,3.96715198]
[1750392779826,8.1079,2520.8,2520.7,3.96715198]
[1750392781335,1.7009,2520.8,2520.7,3.96715198]
[1750392781504,8.1069,2520.8,2520.7,3.96715198]
[1750392782840,8.1059,2520.8,2520.7,3.96715198]
[1750392783043,8.043,2520.8,2520.7,3.96715198]
[1750392785519,8.1049,2520.8,2520.7,3.96715198]
[1750392787307,8.043,2520.8,2520.7,3.96715198]
[1750392791474,8.1049,2520.8,2520.7,3.96715198]
[1750392793479,8.043,2520.8,2520.7,3.96715198]
[1750392793651,8.1049,2520.8,2520.6,3.96723448]
[1750392793852,8.1049,2520.8,2520.7,3.96715198]
[1750392795687,8.043,2520.8,2520.7,3.96715198]
[1750392796592,8.038,2520.8,2520.7,3.96715198]
[1750392804266,10.0,2521.1,2520.5,3.96746677]
[1750392804389,10.0,2521.1,2521.0,3.96667988]
[1750392807227,11.633,2521.1,2521.0,4.02407988]
[1750392807600,18.036,2521.1,2521.0,4.02407988]
[1750392809392,18.036,2521.1,2521.0,3.96667988]
[1750392815357,18.036,2521.1,2520.9,4.8087452]
[1750392817353,18.0955,2521.1,2520.8,3.96690764]
[1750392817560,7.00613695,2521.0,2520.7,3.96708908]
[1750392817756,6.398,2520.9,2520.7,3.96708908]
[1750392818150,6.398,2520.9,2520.8,3.9669946]
[1750392821569,6.398,2520.9,2520.8,4.0243946]
[1750392821753,1.633,2521.1,2521.0,3.96667988]
[1750392821925,8.032,2521.1,2521.0,3.96667988]
[1750392831867,1.633,2521.1,2521.0,3.96667988]
[1750392832081,8.036,2521.1,2521.0,3.96667988]
[1750392832933,13.58111623,2521.1,2521.0,3.96667988]
[1750392838492,13.58111623,2521.1,2520.9,3.96670382]
[1750392838664,0.0589,2521.0,2520.9,3.96670382]
[1750392842065,8.8684,2521.1,2521.0,3.96667988]
[1750392842266,14.41351623,2521.1,2521.0,3.96667988]
[1750392843493,7.17811623,2521.1,2521.0,3.96667988]
[1750392843651,13.57611623,2521.1,2521.0,3.96667988]
[1750392847802,13.63501623,2521.1,2521.0,3.96667988]
[1750392851966,13.57611623,2521.1,2521.0,3.96667988]
[1750392854601,13.63501623,2521.1,2521.0,3.96667988]
[1750392856302,13.63501623,2521.1,2520.9,3.96674911]
[1750392857363,19.98164887,2521.1,2520.7,3.96709401]
[1750392857564,5.54511623,2520.9,2520.7,3.96709401]
[1750392857907,6.393,2520.8,2520.7,3.96715198]
[1750392862498,8.022,2520.8,2520.7,3.96715198]
[1750392865591,8.022,2520.8,2520.7,4.02635198]
[1750392865811,8.021,2520.8,2520.7,4.02635198]
[1750392866418,8.021,2520.8,2520.7,3.96715198]
[1750392873232,8.0802,2520.8,2520.7,3.96715198]
[1750392877536,13.56611623,2520.8,2520.7,3.96715198]
[1750392877742,13.62531623,2520.8,2520.7,3.96715198]
[1750392878946,8.0802,2520.8,2520.7,3.96715198]
[1750392880057,0.7925,2520.9,2520.7,3.96715198]
[1750392880345,0.8517,2521.2,2521.0,3.96659842]
[1750392880532,8.021,2521.1,2521.0,3.96659842]
[1750392885505,8.021,2521.1,2521.0,4.02579842]
[1750392890410,1.629,2521.1,2521.0,3.96659842]
[1750392890629,1.629,2521.1,2521.0,4.84969842]
[1750392890842,8.021,2521.1,2521.0,4.84969842]
[1750392894718,1.629,2521.1,2521.0,5.73245016]
[1750392894942,8.021,2521.1,2521.0,5.73245016]
[1750392896322,1.629,2521.1,2521.0,5.73245016]
[1750392896538,1.629,2521.1,2521.0,5.77211213]
[1750392897742,0.059,2521.5,2521.4,3.9660506]
[1750392898056,6.451,2521.5,2521.4,5.17755566]
[1750392903974,6.45,2521.5,2521.4,5.17755566]
[1750392904491,0.059,2521.5,2521.4,5.17755566]
[1750392904760,0.059,2521.5,2521.4,5.21721153]
[1750392904930,6.451,2521.5,2521.4,5.21721153]
[1750392905132,6.451,2521.5,2521.4,5.17755566]
[1750392905880,0.059,2521.5,2521.4,5.17755566]
[1750392906058,0.059,2521.5,2521.4,5.21720996]
[1750392908184,0.059,2521.5,2521.4,5.17755566]
[1750392908573,0.059,2521.5,2521.4,5.21721051]
[1750392912448,0.059,2521.5,2521.4,15.21721051]
[1750392912651,0.059,2521.5,2521.4,15.17755566]
[1750392916196,0.059,2521.5,2521.4,15.72755566]
[1750392917084,0.059,2521.5,2521.4,20.43755566]
[1750392919467,0.059,2521.5,2521.4,27.36823783]
[1750392923311,0.059,2521.5,2521.4,19.13335566]
[1750392923487,0.059,2521.5,2521.4,19.93855566]
[1750392923692,0.059,2521.5,2521.4,19.87785566]
[1750392923888,0.059,2521.5,2521.4,9.07265566]
[1750392924474,0.116,2521.5,2521.4,9.07265566]
[1750392924675,0.059,2521.5,2521.4,9.07265566]
[1750392924884,0.116,2521.5,2521.4,9.07265566]
[1750392925812,0.059,2521.5,2521.4,9.07265566]
[1750392928826,0.059,2521.5,2521.4,4.36265566]
[1750392929035,0.059,2521.5,2521.4,4.4023099]
[1750392929186,0.059,2521.5,2521.4,3.9660506]
[1750392929542,0.116,2521.5,2521.4,13.9660506]
[1750392929885,0.8093,2521.5,2521.4,3.9660506]
[1750392930096,0.116,2521.5,2521.4,4.00570516]
[1750392931226,0.059,2521.5,2521.4,4.00570516]
[1750392932228,0.059,2521.5,2521.4,4.80896288]
[1750392932393,0.059,2521.5,2521.4,4.86966288]
[1750392932590,0.059,2521.5,2521.4,4.83000832]
[1750392934422,0.059,2521.5,2521.4,4.86966184]
[1750392935129,0.059,2521.5,2521.4,5.64636184]
[1750392935623,0.059,2521.5,2521.4,5.60670832]
[1750392936004,0.059,2521.5,2521.4,5.64635846]
[1750392936202,0.059,2521.5,2521.4,16.19635846]
[1750392936516,0.059,2521.5,2521.4,16.15670832]
[1750392936717,0.059,2521.5,2521.4,22.57470832]
[1750392940743,0.059,2521.5,2521.4,27.81369049]
[1750392944130,0.059,2521.5,2521.4,20.82230832]
[1750392944335,0.059,2521.5,2521.4,34.24169049]
[1750392944544,0.059,2521.5,2521.4,33.69169049]
[1750392945848,0.059,2521.5,2521.4,27.26369049]
[1750392946143,0.059,2521.5,2521.4,19.47930832]
[1750392947834,0.059,2521.5,2521.4,26.40999049]
[1750392948025,0.059,2521.5,2521.4,26.47069049]
[1750392948628,0.059,2521.5,2521.4,26.40999049]
[1750392948934,0.059,2521.5,2521.4,19.47930832]
[1750392950755,0.059,2521.5,2521.4,3.9660506]
[1750392951638,0.116,2521.5,2521.4,3.9660506]
[1750392952843,0.059,2521.5,2521.4,3.9660506]
[1750392953642,0.1201,2521.5,2521.4,3.9660506]
[1750392953942,0.059,2521.5,2521.4,4.00570333]
[1750392955416,0.1201,2521.5,2521.4,3.9660506]
[1750392956611,0.059,2521.5,2521.4,3.9660506]
[1750392956817,0.1201,2521.5,2521.4,3.9660506]
[1750392959453,0.1201,2521.5,2521.4,4.00570663]
[1750392959934,0.059,2521.5,2521.4,4.00570663]
[1750392960167,0.059,2521.5,2521.4,4.8028945]
[1750392960757,0.059,2521.5,2521.4,4.76323847]
[1750392961271,0.059,2521.5,2521.4,4.80289189]
[1750392961436,0.059,2521.5,2521.4,4.86389189]
[1750392961772,0.059,2521.5,2521.4,4.82423847]
[1750392963582,0.059,2521.5,2521.4,15.68969034]
[1750392963773,0.059,2521.5,2521.4,15.65003847]
[1750392965653,0.059,2521.5,2521.4,15.58903847]
[1750392967271,0.059,2521.5,2521.4,20.29903847]
[1750392970561,0.059,2521.5,2521.4,19.47323847]
[1750392970873,0.1201,2521.5,2521.4,19.47323847]
[1750392972678,0.059,2521.5,2521.4,19.47323847]
[1750392973247,0.059,2521.5,2521.4,14.76323847]
[1750392979780,0.059,2521.5,2521.4,14.82423847]
[1750392981080,0.059,2521.5,2521.4,15.63453847]
[1750392982187,0.059,2521.5,2521.4,15.57353847]
[1750392982486,0.059,2521.5,2521.4,15.63453847]
[1750392984992,0.059,2521.5,2521.4,20.34453847]
[1750392989014,0.059,2521.5,2521.4,19.53423847]
[1750392989203,0.059,2521.5,2521.4,19.47323847]
[1750392989776,0.059,2521.5,2521.4,19.53233847]
[1750392995813,0.059,2521.5,2521.4,19.47323847]
[1750392996885,0.059,2521.5,2521.4,21.75302064]
[1750392998743,0.059,2521.5,2521.4,21.69392064]
[1750392998902,0.059,2521.5,2521.4,14.76323847]
[1750392999734,0.059,2521.5,2521.4,20.3920506]
[1750393004827,0.059,2521.5,2521.4,27.32273277]
[1750393005187,0.059,2521.5,2521.4,27.38183277]
[1750393007596,0.059,2521.5,2521.4,20.95583277]
[1750393007792,0.059,2521.5,2521.4,20.89673277]
[1750393007991,0.059,2521.5,2521.4,25.02051398]
[1750393008929,0.059,2521.5,2521.4,29.73051398]
[1750393017132,0.059,2521.5,2521.4,22.79983181]
[1750393017337,0.059,2521.5,2521.4,29.73051398]
[1750393019339,0.059,2521.5,2521.4,30.27861398]
[1750393025827,0.059,2521.5,2521.4,38.34861398]
[1750393045416,0.059,2521.5,2521.4,38.29141398]
[1750393045702,0.059,2521.5,2521.4,38.34941398]
[1750393052782,0.059,2521.5,2521.4,38.29141398]
[1750393053416,0.059,2521.5,2521.4,31.05631398]
[1750393053579,0.1215,2521.5,2521.4,37.46231398]
[1750393054499,0.059,2521.5,2521.4,29.41531398]
[1750393054717,0.1215,2521.5,2521.4,35.82231398]
[1750393056215,0.059,2521.5,2521.4,35.82231398]
[1750393059893,0.059,2521.5,2521.4,29.41531398]
[1750393060097,0.1215,2521.5,2521.4,35.82031398]
[1750393064917,0.1215,2521.5,2521.4,34.42804222]
[1750393068233,0.059,2521.5,2521.4,34.42804222]
[1750393070133,0.059,2521.5,2521.4,28.02304222]
[1750393070311,0.1215,2521.5,2521.4,28.02304222]
[1750393074350,0.059,2521.5,2521.4,28.02304222]
[1750393075667,0.059,2521.5,2521.4,28.85145263]
[1750393075871,11.163,2523.0,2522.9,3.96369257]
[1750393076011,11.2228,2523.0,2522.9,3.96369257]
[1750393076410,12.0351,2523.0,2522.9,3.96369257]
[1750393080350,0.8792,2522.9,2522.8,3.96377228]
[1750393082056,0.8792,2522.9,2522.7,3.96391688]
[1750393082222,7.2933,2522.8,2522.7,3.96391688]
[1750393082417,9.83083781,2522.8,2522.7,3.96391688]
[1750393084964,0.8561,2522.7,2522.6,3.96405428]
[1750393085354,0.7963,2522.6,2521.6,10.0]
[1750393085676,0.8561,2522.4,2522.3,3.96463545]
[1750393086946,8.9141,2522.4,2522.3,3.96463545]
[1750393092701,2.4961,2522.4,2522.3,3.96463545]
[1750393092995,8.9121,2522.4,2522.3,3.96463545]
[1750393093366,8.9111,2522.4,2522.3,3.96463545]
[1750393094277,9.80221,2522.4,2522.3,3.96463545]
[1750393097371,8.9111,2522.4,2522.3,3.96463545]
[1750393097571,8.9101,2522.4,2522.3,3.96463545]
[1750393098101,8.9091,2522.4,2522.3,3.96463545]
[1750393102722,0.8561,2522.4,2522.3,3.96463545]
[1750393102900,8.9081,2522.4,2522.3,3.96463545]
[1750393106803,9.79891,2522.4,2522.3,3.96463545]
[1750393107704,9.79591,2522.4,2522.3,3.96463545]
[1750393107878,8.9051,2522.4,2522.3,3.96463545]
[1750393108079,0.8561,2522.4,2522.3,3.96463545]
[1750393108287,8.9051,2522.4,2522.3,3.96463545]
[1750393110792,0.8089,2522.3,2522.2,3.96479264]
[1750393111104,1.69469,2522.3,2522.2,3.96479264]
[1750393114106,0.94219,2522.3,2522.1,3.96483294]
[1750393114313,0.8228,2522.2,2522.1,3.96483294]
[1750393117236,0.0564,2522.1,2521.2,10.0606]
[1750393117439,7.1965,2522.0,2521.9,3.9651665]
[1750393117605,7.2529,2522.0,2521.9,3.9651665]
[1750393118205,0.0564,2521.9,2521.8,3.96530984]
[1750393118436,1.6974,2521.9,2521.8,3.96530984]
[1750393151928,0.7964,2521.7,2521.4,3.96595118]
[1750393152137,0.0614,2521.5,2521.4,3.96595118]
[1750393152343,0.78748,2521.5,2521.4,3.96595118]
[1750393152806,0.8326,2521.4,2520.8,4.7297946]
[1750393153012,1.6974,2521.3,2521.2,3.96627787]
[1750393158820,1.636,2521.3,2521.2,3.96627787]
[1750393159925,1.6974,2521.3,2521.2,3.96627787]
[1750393161716,0.8357,2521.2,2520.5,7.93493354]
[1750393161945,6.403,2521.1,2521.0,3.96667988]
[1750393162133,6.4644,2521.1,2521.0,3.96667988]
[1750393167182,6.4644,2521.1,2520.9,3.96678069]
[1750393167481,6.4644,2521.1,2520.8,3.96692531]
[1750393167482,0.0598,2521.0,2520.8,3.96692531]
[1750393167688,0.0598,2521.0,2520.7,3.9670559]
[1750393167893,0.8234,2520.9,2520.7,3.9670559]
[1750393168188,1.7108,2520.8,2520.7,3.9670559]
[1750393170393,1.651,2520.8,2520.7,3.9670559]
[1750393180709,1.7108,2520.8,2520.7,3.9670559]
[1750393181297,1.651,2520.8,2520.7,3.9670559]
[1750393183765,1.99120256,2520.8,2520.7,3.9670559]
[1750393184171,2.76820256,2520.8,2520.7,3.9670559]
[1750393184367,3.13912112,2520.8,2520.7,3.9670559]
[1750393184871,3.13910445,2520.8,2520.7,3.9670559]
[1750393185072,3.13910445,2520.8,2520.3,4.80056406]
[1750393185073,3.07930445,2520.8,2520.3,0.8328]
[1750393185283,7.79271044,2520.7,2520.3,0.8328]
[1750393185505,7.73291044,2520.7,2520.3,0.8328]
[1750393185807,0.0598,2520.6,2520.5,3.96736194]
[1750393186311,7.79271044,2520.7,2520.6,3.96730937]
[1750393187014,8.16355061,2520.7,2520.5,3.96734773]
[1750393187316,1.0501113,2520.6,2520.5,3.96734773]
[1750393187811,11.0501113,2520.6,2520.4,3.96747449]
[1750393188028,11.1099113,2520.6,2520.4,3.96747449]
[1750393188231,1.89026217,2520.5,2520.4,3.96747449]
[1750393190135,0.0598,2520.4,2520.2,3.96787541]
[1750393190368,8.068,2520.3,2520.2,3.96787541]
[1750393190521,8.068,2520.3,2520.2,3.96793905]
[1750393194739,8.1288,2520.3,2520.2,3.96793905]
[1750393200555,8.63426396,2520.3,2520.1,3.96801249]
[1750393200716,0.0608,2520.2,2520.1,3.96801249]
[1750393201662,8.63426396,2520.3,2520.2,3.96793905]
[1750393201966,8.69506396,2520.3,2520.2,3.96793905]
[1750393203555,8.065,2520.3,2520.2,3.96793905]
[1750393204497,1.0501113,2520.6,2520.4,3.96762418]
[1750393204787,10.0,2520.6,2520.5,3.96746677]
[1750393204935,18.42758685,2520.6,2520.5,3.96746677]
[1750393205867,18.42759011,2520.6,2520.5,3.96746677]
[1750393207058,10.37059011,2520.6,2520.5,3.96746677]
[1750393207254,18.43168847,2520.6,2520.5,4.02656677]
[1750393207563,18.43068847,2520.6,2520.5,3.96746677]
[1750393207771,18.43068847,2520.6,2520.5,4.02656677]
[1750393208497,18.06,2520.6,2520.5,4.02656677]
[1750393208707,10.37069504,2520.6,2520.5,3.96746677]
[1750393208857,18.43069504,2520.6,2520.5,4.78596677]
[1750393209966,18.43079324,2520.6,2520.5,4.02656677]
[1750393210325,18.43083495,2520.6,2520.4,3.96752136]
[1750393210458,18.06,2520.6,2520.4,4.02662136]
[1750393210658,18.06,2520.6,2520.5,3.96746677]
[1750393210894,18.4308361,2520.6,2520.5,3.96746677]
[1750393211161,18.43083542,2520.6,2520.5,3.96746677]
[1750393211465,21.4698652,2520.6,2520.5,3.96746677]
[1750393211679,21.47000678,2520.6,2520.5,3.96746677]
[1750393212267,21.47000689,2520.6,2520.5,3.96746677]
[1750393212787,21.47000697,2520.6,2520.5,3.96746677]
[1750393213298,21.4700355,2520.6,2520.5,3.96746677]
[1750393214388,21.09902978,2520.6,2520.5,3.96746677]
[1750393218181,18.06,2520.6,2520.5,3.96746677]
[1750393221911,18.06,2520.6,2520.4,3.96759511]
[1750393223010,18.06,2520.6,2520.1,3.96800352]
[1750393223195,18.06,2520.6,2520.2,3.96785212]
[1750393223379,0.0566,2520.5,2520.2,3.96785212]
[1750393223712,6.4676,2520.4,2520.3,3.96778161]
[1750393224892,16.4676,2520.4,2520.3,3.96778161]
[1750393225097,16.4676,2520.4,2520.2,3.96787113]
[1750393225278,0.0566,2520.3,2520.2,3.96787113]
[1750393227917,16.411,2520.4,2520.3,3.96778161]
[1750393228129,16.412,2520.4,2520.3,3.96778161]
[1750393229521,16.78325253,2520.4,2520.3,3.96778161]
[1750393230823,10.37125253,2520.4,2520.3,3.96778161]
[1750393231021,18.42125253,2520.4,2520.3,3.96778161]
[1750393231189,18.42125751,2520.4,2520.3,3.96778161]
[1750393231590,18.42128761,2520.4,2520.3,3.96778161]
[1750393234221,20.40859637,2520.4,2520.3,3.96778161]
[1750393234423,20.03730876,2520.4,2520.3,3.96778161]
[1750393234608,20.40862089,2520.4,2520.3,3.96778161]
[1750393235227,20.40860481,2520.4,2520.3,3.96778161]
[1750393236042,10.0566,2520.3,2520.2,3.96784281]